[Event "Live Chess"]
[Site "Chess.com"]
[Date "2024.06.01"]
[Round "-"]
[White "Sokolik_UA"]
[Black "rakibsachchu"]
[Result "0-1"]
[WhiteElo "798"]
[BlackElo "1565"]
[TimeControl "300"]
[EndTime "10:37:37 PDT"]
[Termination "rakibsachchu won by checkmate"]

1. e4 {[%clk 0:04:54.6]} 1... c5 {[%clk 0:04:47.3]} 2. d4 {[%clk 0:04:53.8]}
2... cxd4 {[%clk 0:04:41.8]} 3. Qxd4 {[%clk 0:04:52.1]} 3... Nc6 {[%clk
0:04:40.2]} 4. Qe3 {[%clk 0:04:51.7]} 4... e5 {[%clk 0:04:38]} 5. Nc3 {[%clk
0:04:51.2]} 5... Bb4 {[%clk 0:04:35.8]} 6. Bd2 {[%clk 0:04:49.9]} 6... Nf6
{[%clk 0:04:32.7]} 7. h3 {[%clk 0:04:47.5]} 7... O-O {[%clk 0:04:30]} 8. Bc4
{[%clk 0:04:45.3]} 8... Nd4 {[%clk 0:04:24.5]} 9. O-O-O {[%clk 0:04:40.9]} 9...
a6 {[%clk 0:04:13.3]} 10. a3 {[%clk 0:04:38.9]} 10... Bc5 {[%clk 0:04:09.3]} 11.
Qg3 {[%clk 0:04:32]} 11... d6 {[%clk 0:03:57]} 12. Nf3 {[%clk 0:04:22.2]} 12...
Be6 {[%clk 0:03:53.9]} 13. Bxe6 {[%clk 0:04:19.6]} 13... Nxe6 {[%clk 0:03:43.6]}
14. Ng5 {[%clk 0:04:10.9]} 14... b5 {[%clk 0:03:28.2]} 15. h4 {[%clk 0:04:09.5]}
15... b4 {[%clk 0:03:21.3]} 16. Nd5 {[%clk 0:04:06.8]} 16... bxa3 {[%clk
0:03:12.4]} 17. bxa3 {[%clk 0:04:04.4]} 17... Nxd5 {[%clk 0:03:02.7]} 18. exd5
{[%clk 0:04:01.1]} 18... Nd4 {[%clk 0:02:57.2]} 19. Be3 {[%clk 0:03:50.7]} 19...
Ne2+ {[%clk 0:02:54.6]} 20. Kd2 {[%clk 0:03:46.2]} 20... Nxg3 {[%clk 0:02:44.7]}
21. fxg3 {[%clk 0:03:45.2]} 21... Bxe3+ {[%clk 0:02:42]} 22. Kxe3 {[%clk
0:03:44.2]} 22... Qb6+ {[%clk 0:02:40.1]} 23. Ke4 {[%clk 0:03:43]} 23... f5+
{[%clk 0:02:37.8]} 24. Kf3 {[%clk 0:03:40.7]} 24... e4+ {[%clk 0:02:32]} 25. Kf4
{[%clk 0:03:39.6]} 25... Qf2+ {[%clk 0:02:29.9]} 26. Nf3 {[%clk 0:03:36.8]}
26... exf3 {[%clk 0:02:24.4]} 27. gxf3 {[%clk 0:03:36]} 27... Rae8 {[%clk
0:02:22.6]} 28. h5 {[%clk 0:03:34.4]} 28... Qe3# {[%clk 0:02:18.1]} 0-1

[Event "Live Chess"]
[Site "Chess.com"]
[Date "2024.06.01"]
[Round "-"]
[White "sshamil"]
[Black "Nazar-Makarchuk"]
[Result "0-1"]
[WhiteElo "1669"]
[BlackElo "1582"]
[TimeControl "300"]
[EndTime "10:37:39 PDT"]
[Termination "Nazar-Makarchuk won by resignation"]

1. g3 {[%clk 0:04:57.7]} 1... d5 {[%clk 0:04:59.1]} 2. Bg2 {[%clk 0:04:56.5]}
2... Nf6 {[%clk 0:04:58.3]} 3. Nf3 {[%clk 0:04:55.4]} 3... Nc6 {[%clk
0:04:57.8]} 4. O-O {[%clk 0:04:53.3]} 4... e5 {[%clk 0:04:57.3]} 5. b3 {[%clk
0:04:50.8]} 5... Bd6 {[%clk 0:04:55.5]} 6. Bb2 {[%clk 0:04:49.9]} 6... O-O
{[%clk 0:04:54.8]} 7. d3 {[%clk 0:04:48.7]} 7... e4 {[%clk 0:04:54.1]} 8. dxe4
{[%clk 0:04:47.4]} 8... dxe4 {[%clk 0:04:53.7]} 9. Nfd2 {[%clk 0:04:46.2]} 9...
Bb4 {[%clk 0:04:51.3]} 10. Bc3 {[%clk 0:04:41.6]} 10... Bxc3 {[%clk 0:04:50.3]}
11. Nxc3 {[%clk 0:04:40.2]} 11... Qd4 {[%clk 0:04:49.3]} 12. Ncxe4 {[%clk
0:04:35.5]} 12... Nxe4 {[%clk 0:04:47.3]} 13. Nxe4 {[%clk 0:04:34]} 13... Qxd1
{[%clk 0:04:40.7]} 14. Rfxd1 {[%clk 0:04:32]} 14... Bf5 {[%clk 0:04:40.2]} 15.
c3 {[%clk 0:04:23.6]} 15... Rfe8 {[%clk 0:04:33.9]} 16. f3 {[%clk 0:04:14.8]}
16... Bxe4 {[%clk 0:04:24.4]} 17. fxe4 {[%clk 0:04:13.6]} 17... Ne5 {[%clk
0:04:17.8]} 18. Kf2 {[%clk 0:04:12.3]} 18... Ng4+ {[%clk 0:04:10.5]} 19. Kg1
{[%clk 0:04:10.4]} 19... Ne3 {[%clk 0:04:09.1]} 20. Rd4 {[%clk 0:04:03.4]} 20...
Nc2 {[%clk 0:04:04.8]} 21. Rad1 {[%clk 0:04:00.3]} 21... Nxd4 {[%clk 0:03:58.6]}
22. cxd4 {[%clk 0:03:55.2]} 22... c6 {[%clk 0:03:55.7]} 23. e5 {[%clk
0:03:54.2]} 23... Rad8 {[%clk 0:03:54.7]} 24. e3 {[%clk 0:03:53.1]} 24... Rxe5
{[%clk 0:03:46.6]} 25. Kf2 {[%clk 0:03:49.4]} 25... Rf5+ {[%clk 0:03:36.5]} 26.
Ke2 {[%clk 0:03:46.7]} 26... Ra5 {[%clk 0:03:34.2]} 27. a4 {[%clk 0:03:43.5]}
27... b5 {[%clk 0:03:32.5]} 28. axb5 {[%clk 0:03:37.5]} 28... cxb5 {[%clk
0:03:30.9]} 29. Rb1 {[%clk 0:03:29.2]} 29... Ra2+ {[%clk 0:03:22.3]} 30. Kf3
{[%clk 0:03:26.9]} 30... Rc8 {[%clk 0:03:11.4]} 31. h4 {[%clk 0:03:24.1]} 31...
a5 {[%clk 0:03:09.3]} 32. Bh3 {[%clk 0:03:22.6]} 32... Rc3 {[%clk 0:03:06.9]}
33. Ke4 {[%clk 0:03:19.7]} 33... Ra3 {[%clk 0:03:05.7]} 34. d5 {[%clk
0:03:17.8]} 34... Raxb3 {[%clk 0:02:58.3]} 35. Rxb3 {[%clk 0:03:15.8]} 35...
Rxb3 {[%clk 0:02:57.2]} 36. d6 {[%clk 0:03:15.3]} 36... Kf8 {[%clk 0:02:54.8]}
37. Kd5 {[%clk 0:03:08.8]} 37... Ke8 {[%clk 0:02:52.8]} 38. Kc6 {[%clk
0:03:06.6]} 38... Kd8 {[%clk 0:02:45.4]} 39. Bf1 {[%clk 0:03:01]} 39... Rxe3
{[%clk 0:02:36.8]} 40. Kxb5 {[%clk 0:02:59.5]} 40... Rxg3 {[%clk 0:02:34.8]} 41.
Kxa5 {[%clk 0:02:58.7]} 41... Rg4 {[%clk 0:02:31.5]} 42. Kb6 {[%clk 0:02:55]}
42... Rxh4 {[%clk 0:02:30.1]} 43. Bd3 {[%clk 0:02:54.2]} 43... Rd4 {[%clk
0:02:28.7]} 0-1

[Event "Live Chess"]
[Site "Chess.com"]
[Date "2024.06.01"]
[Round "-"]
[White "peteopeteo"]
[Black "ALEX_UA_69"]
[Result "1-0"]
[WhiteElo "1620"]
[BlackElo "1763"]
[TimeControl "300"]
[EndTime "10:37:40 PDT"]
[Termination "peteopeteo won by resignation"]

1. e4 {[%clk 0:04:58.8]} 1... e5 {[%clk 0:04:58.8]} 2. Nf3 {[%clk 0:04:58]} 2...
Nc6 {[%clk 0:04:56.5]} 3. Bc4 {[%clk 0:04:57.3]} 3... Bc5 {[%clk 0:04:55]} 4. d4
{[%clk 0:04:56.7]} 4... exd4 {[%clk 0:04:53.5]} 5. c3 {[%clk 0:04:56.5]} 5...
dxc3 {[%clk 0:04:52.5]} 6. Bxf7+ {[%clk 0:04:56.2]} 6... Kxf7 {[%clk 0:04:50.4]}
7. Qd5+ {[%clk 0:04:55.8]} 7... Ke7 {[%clk 0:04:38.4]} 8. Qxc5+ {[%clk
0:04:54.9]} 8... d6 {[%clk 0:04:37.4]} 9. Qxc3 {[%clk 0:04:41.8]} 9... Nf6
{[%clk 0:04:34.9]} 10. O-O {[%clk 0:04:36.5]} 10... Bg4 {[%clk 0:04:28.7]} 11.
e5 {[%clk 0:04:23.7]} 11... Bxf3 {[%clk 0:04:10.9]} 12. exf6+ {[%clk 0:04:22.3]}
12... gxf6 {[%clk 0:04:08.7]} 13. Qxf3 {[%clk 0:04:20.1]} 13... Kf7 {[%clk
0:04:05.9]} 14. Qb3+ {[%clk 0:04:17]} 14... d5 {[%clk 0:04:01.9]} 15. Qxb7
{[%clk 0:04:12.3]} 15... Qd6 {[%clk 0:04:00.8]} 16. Qb3 {[%clk 0:04:01.2]} 16...
Rab8 {[%clk 0:03:54.7]} 17. Qc3 {[%clk 0:03:43.2]} 17... Rhg8 {[%clk 0:03:50.2]}
18. Nd2 {[%clk 0:03:22.6]} 18... Rg6 {[%clk 0:03:42.9]} 19. Nf3 {[%clk
0:03:16.8]} 19... Rbg8 {[%clk 0:03:39.4]} 20. g3 {[%clk 0:03:03.1]} 20... Rxg3+
{[%clk 0:03:37.2]} 21. fxg3 {[%clk 0:02:59.7]} 21... Rxg3+ {[%clk 0:03:36.2]}
22. hxg3 {[%clk 0:02:55.2]} 22... Qxg3+ {[%clk 0:03:34.5]} 23. Kh1 {[%clk
0:02:54.1]} 23... Qh3+ {[%clk 0:03:32]} 24. Nh2 {[%clk 0:02:49.1]} 1-0

[Event "Live Chess"]
[Site "Chess.com"]
[Date "2024.06.01"]
[Round "-"]
[White "PureDashingOctopus"]
[Black "booktrunk"]
[Result "1-0"]
[WhiteElo "2234"]
[BlackElo "1400"]
[TimeControl "300"]
[EndTime "10:37:43 PDT"]
[Termination "PureDashingOctopus won by resignation"]

1. e4 {[%clk 0:04:57]} 1... b6 {[%clk 0:04:51.5]} 2. d4 {[%clk 0:04:55.2]} 2...
Bb7 {[%clk 0:04:51.4]} 3. Bd3 {[%clk 0:04:54.1]} 3... e6 {[%clk 0:04:46.3]} 4.
Ne2 {[%clk 0:04:51.1]} 4... h6 {[%clk 0:04:40.9]} 5. Nbc3 {[%clk 0:04:47.5]}
5... Nf6 {[%clk 0:04:39.4]} 6. f3 {[%clk 0:04:45.4]} 6... Be7 {[%clk 0:04:33.1]}
7. Be3 {[%clk 0:04:43.8]} 7... Ba6 {[%clk 0:04:28.2]} 8. Bxa6 {[%clk 0:04:39.8]}
8... Nxa6 {[%clk 0:04:26.3]} 9. a3 {[%clk 0:04:39.3]} 9... c6 {[%clk 0:04:23.7]}
10. Qd2 {[%clk 0:04:36.3]} 10... Nc7 {[%clk 0:04:22.5]} 11. g4 {[%clk
0:04:34.1]} 11... d5 {[%clk 0:04:21.3]} 12. e5 {[%clk 0:04:32.8]} 12... Nh7
{[%clk 0:04:17.1]} 13. O-O-O {[%clk 0:04:31.8]} 13... Bg5 {[%clk 0:04:15.4]} 14.
f4 {[%clk 0:04:30.6]} 14... Be7 {[%clk 0:04:11.2]} 15. h4 {[%clk 0:04:27.3]}
15... Bxh4 {[%clk 0:04:08.6]} 16. g5 {[%clk 0:04:26.6]} 16... hxg5 {[%clk
0:04:06.6]} 17. fxg5 {[%clk 0:04:25.7]} 17... Bxg5 {[%clk 0:04:04.6]} 18. Bxg5
{[%clk 0:04:24.3]} 18... Qd7 {[%clk 0:03:57.8]} 19. Rh4 {[%clk 0:04:17.7]} 19...
Kf8 {[%clk 0:03:54.9]} 20. Rdh1 {[%clk 0:04:15.9]} 20... Kg8 {[%clk 0:03:52.7]}
21. Qd3 {[%clk 0:04:11.7]} 21... g6 {[%clk 0:03:51.3]} 22. Bf6 {[%clk
0:04:09.2]} 1-0

[Event "Live Chess"]
[Site "Chess.com"]
[Date "2024.06.01"]
[Round "-"]
[White "Ksenia_2013"]
[Black "seasidecastle27"]
[Result "0-1"]
[WhiteElo "768"]
[BlackElo "1951"]
[TimeControl "300"]
[EndTime "10:37:45 PDT"]
[Termination "seasidecastle27 won by checkmate"]

1. e4 {[%clk 0:04:54.3]} 1... e6 {[%clk 0:04:58.2]} 2. d4 {[%clk 0:04:52.4]}
2... d5 {[%clk 0:04:57.4]} 3. e5 {[%clk 0:04:51]} 3... c5 {[%clk 0:04:56.2]} 4.
Be3 {[%clk 0:04:48.7]} 4... cxd4 {[%clk 0:04:45.4]} 5. Bxd4 {[%clk 0:04:47.2]}
5... Nc6 {[%clk 0:04:44.2]} 6. Bb5 {[%clk 0:04:45.5]} 6... Bd7 {[%clk
0:04:39.8]} 7. Nf3 {[%clk 0:04:43.5]} 7... Nge7 {[%clk 0:04:28.6]} 8. Ng5 {[%clk
0:04:40.4]} 8... Nxd4 {[%clk 0:04:19.4]} 9. Qxd4 {[%clk 0:04:36.8]} 9... Bxb5
{[%clk 0:04:13.6]} 10. Qf4 {[%clk 0:04:33.2]} 10... Nf5 {[%clk 0:04:07.3]} 11.
Nc3 {[%clk 0:04:27.1]} 11... Be7 {[%clk 0:04:05.1]} 12. Nxb5 {[%clk 0:04:25]}
12... Bxg5 {[%clk 0:04:03.6]} 13. Qa4 {[%clk 0:04:20.5]} 13... O-O {[%clk
0:03:56.4]} 14. Qg4 {[%clk 0:04:17.2]} 14... Qa5+ {[%clk 0:03:47.4]} 15. Nc3
{[%clk 0:04:14.1]} 15... Be7 {[%clk 0:03:30.1]} 16. h4 {[%clk 0:04:09.8]} 16...
d4 {[%clk 0:03:26.4]} 17. O-O {[%clk 0:04:06.8]} 17... dxc3 {[%clk 0:03:24.9]}
18. bxc3 {[%clk 0:04:05.5]} 18... Qxc3 {[%clk 0:03:19.5]} 19. Rad1 {[%clk
0:04:02.6]} 19... Rad8 {[%clk 0:03:17.6]} 20. Rd3 {[%clk 0:03:58.8]} 20... Rxd3
{[%clk 0:03:15.8]} 21. cxd3 {[%clk 0:03:57.7]} 21... Qxd3 {[%clk 0:03:13.5]} 22.
Rd1 {[%clk 0:03:55.7]} 22... Qc2 {[%clk 0:03:07]} 23. Rf1 {[%clk 0:03:52.8]}
23... Bc5 {[%clk 0:03:02.5]} 24. h5 {[%clk 0:03:48.4]} 24... h6 {[%clk
0:03:00.6]} 25. Qf3 {[%clk 0:03:36.7]} 25... Rd8 {[%clk 0:02:55.5]} 26. Qxb7
{[%clk 0:03:34.2]} 26... Rd1 {[%clk 0:02:51.7]} 27. Rxd1 {[%clk 0:03:30.7]}
27... Qxd1+ {[%clk 0:02:50.4]} 28. Kh2 {[%clk 0:03:29.5]} 28... Bxf2 {[%clk
0:02:47.2]} 29. Qb8+ {[%clk 0:03:25.5]} 29... Kh7 {[%clk 0:02:45]} 30. Qc7
{[%clk 0:03:17.2]} 30... Qxh5# {[%clk 0:02:42]} 0-1

[Event "Live Chess"]
[Site "Chess.com"]
[Date "2024.06.01"]
[Round "-"]
[White "KeithArkell"]
[Black "RuslanChessN"]
[Result "1-0"]
[WhiteElo "2514"]
[BlackElo "1943"]
[TimeControl "300"]
[EndTime "10:37:47 PDT"]
[Termination "KeithArkell won by resignation"]

1. d4 {[%clk 0:04:57.9]} 1... c6 {[%clk 0:04:57.5]} 2. Nf3 {[%clk 0:04:56.9]}
2... d5 {[%clk 0:04:56.2]} 3. c4 {[%clk 0:04:56.4]} 3... Bf5 {[%clk 0:04:54.7]}
4. Nc3 {[%clk 0:04:55.4]} 4... e6 {[%clk 0:04:53.7]} 5. cxd5 {[%clk 0:04:54.2]}
5... cxd5 {[%clk 0:04:51.4]} 6. Bg5 {[%clk 0:04:52.8]} 6... Qb6 {[%clk
0:04:48.5]} 7. Qb3 {[%clk 0:04:51.3]} 7... Qxb3 {[%clk 0:04:46.4]} 8. axb3
{[%clk 0:04:50.5]} 8... Nc6 {[%clk 0:04:45.4]} 9. e3 {[%clk 0:04:49.5]} 9... Bd6
{[%clk 0:04:34.8]} 10. Bb5 {[%clk 0:04:48.1]} 10... Ne7 {[%clk 0:04:32.1]} 11.
Bxe7 {[%clk 0:04:46.2]} 11... Kxe7 {[%clk 0:04:30.9]} 12. Kd2 {[%clk 0:04:44.6]}
12... Rhc8 {[%clk 0:04:25.4]} 13. Rhc1 {[%clk 0:04:42.6]} 13... Nb4 {[%clk
0:04:18.5]} 14. Ne1 {[%clk 0:04:38.8]} 14... Bxh2 {[%clk 0:04:13.3]} 15. g3
{[%clk 0:04:38.1]} 15... Bg1 {[%clk 0:04:11.7]} 16. Ke2 {[%clk 0:04:36.6]} 16...
a6 {[%clk 0:04:02]} 17. Nf3 {[%clk 0:04:31.7]} 17... Bxf2 {[%clk 0:03:54.8]} 18.
Kxf2 {[%clk 0:04:30.6]} 18... axb5 {[%clk 0:03:53.5]} 19. Rxa8 {[%clk
0:04:28.2]} 19... Rxa8 {[%clk 0:03:51.8]} 20. Nxb5 {[%clk 0:04:27.1]} 20... Ra2
{[%clk 0:03:45.7]} 21. Rc7+ {[%clk 0:04:25.2]} 21... Kf6 {[%clk 0:03:43.6]} 22.
Ne5 {[%clk 0:04:21.1]} 22... Rxb2+ {[%clk 0:03:42.2]} 23. Kg1 {[%clk 0:04:19.9]}
23... Bg6 {[%clk 0:03:40.6]} 24. Rxb7 {[%clk 0:04:15.8]} 24... Rxb3 {[%clk
0:03:35.3]} 25. Nd6 {[%clk 0:04:13.8]} 25... Rxe3 {[%clk 0:03:17]} 26. Ng4+
{[%clk 0:04:01.2]} 1-0

[Event "Live Chess"]
[Site "Chess.com"]
[Date "2024.06.01"]
[Round "-"]
[White "Duke_of_Bebington"]
[Black "yarek"]
[Result "0-1"]
[WhiteElo "1631"]
[BlackElo "1732"]
[TimeControl "300"]
[EndTime "10:37:58 PDT"]
[Termination "yarek won by resignation"]

1. e4 {[%clk 0:04:58.1]} 1... g6 {[%clk 0:04:54.4]} 2. d4 {[%clk 0:04:54]} 2...
Bg7 {[%clk 0:04:53.8]} 3. Be3 {[%clk 0:04:52.8]} 3... c6 {[%clk 0:04:53.2]} 4.
Bd3 {[%clk 0:04:50.6]} 4... d5 {[%clk 0:04:52.7]} 5. f3 {[%clk 0:04:48.2]} 5...
e5 {[%clk 0:04:42.3]} 6. Ne2 {[%clk 0:04:40.5]} 6... dxe4 {[%clk 0:04:36.2]} 7.
fxe4 {[%clk 0:04:28]} 7... exd4 {[%clk 0:04:34.2]} 8. Bf4 {[%clk 0:04:19]} 8...
Nf6 {[%clk 0:04:26.1]} 9. Na3 {[%clk 0:04:15.6]} 9... b5 {[%clk 0:04:20.5]} 10.
h3 {[%clk 0:04:09]} 10... O-O {[%clk 0:04:13.5]} 11. Qd2 {[%clk 0:04:07.4]}
11... Nh5 {[%clk 0:04:07]} 12. Bh6 {[%clk 0:04:04.3]} 12... Qh4+ {[%clk
0:03:35.1]} 13. g3 {[%clk 0:03:57.7]} 13... Nxg3 {[%clk 0:03:33]} 14. O-O-O
{[%clk 0:03:56.2]} 14... Nxe2+ {[%clk 0:03:30.7]} 15. Bxe2 {[%clk 0:03:50.8]}
15... Bxh6 {[%clk 0:03:28.7]} 0-1

[Event "Live Chess"]
[Site "Chess.com"]
[Date "2024.06.01"]
[Round "-"]
[White "Cruiseylee78"]
[Black "DenisOnopriichuk2003"]
[Result "1-0"]
[WhiteElo "1676"]
[BlackElo "1775"]
[TimeControl "300"]
[EndTime "10:37:59 PDT"]
[Termination "Cruiseylee78 won by checkmate"]

1. d4 {[%clk 0:04:58.2]} 1... Nf6 {[%clk 0:04:57.7]} 2. Bf4 {[%clk 0:04:57.7]}
2... d5 {[%clk 0:04:56.4]} 3. e3 {[%clk 0:04:56.7]} 3... h6 {[%clk 0:04:56]} 4.
Nf3 {[%clk 0:04:55.7]} 4... Bg4 {[%clk 0:04:55.6]} 5. Nbd2 {[%clk 0:04:54.4]}
5... Bxf3 {[%clk 0:04:55.5]} 6. Nxf3 {[%clk 0:04:53.4]} 6... e6 {[%clk 0:04:55]}
7. Bd3 {[%clk 0:04:52.7]} 7... Bd6 {[%clk 0:04:54.9]} 8. Bg3 {[%clk 0:04:51.5]}
8... Bxg3 {[%clk 0:04:53.9]} 9. hxg3 {[%clk 0:04:51.4]} 9... c5 {[%clk
0:04:53.4]} 10. c3 {[%clk 0:04:50.6]} 10... Nc6 {[%clk 0:04:52.7]} 11. Qc2
{[%clk 0:04:50]} 11... cxd4 {[%clk 0:04:52.2]} 12. exd4 {[%clk 0:04:49]} 12...
Rc8 {[%clk 0:04:52.1]} 13. a3 {[%clk 0:04:46.9]} 13... a6 {[%clk 0:04:51.1]} 14.
Ne5 {[%clk 0:04:35]} 14... Nxd4 {[%clk 0:04:49.2]} 15. Qa4+ {[%clk 0:04:31.7]}
15... Nc6 {[%clk 0:04:48.3]} 16. Nxc6 {[%clk 0:04:26.8]} 16... Rxc6 {[%clk
0:04:48.2]} 17. O-O-O {[%clk 0:04:10.9]} 17... b5 {[%clk 0:03:11.1]} 18. Qf4
{[%clk 0:03:39.7]} 18... Qb6 {[%clk 0:03:05.8]} 19. Kb1 {[%clk 0:03:36.3]} 19...
a5 {[%clk 0:03:03.7]} 20. Rh4 {[%clk 0:03:31.5]} 20... g5 {[%clk 0:02:59.9]} 21.
Qxf6 {[%clk 0:03:28.1]} 21... gxh4 {[%clk 0:02:52.1]} 22. Qxh8+ {[%clk
0:03:25.2]} 22... Ke7 {[%clk 0:02:49.4]} 23. Qxh6 {[%clk 0:03:22.3]} 23... b4
{[%clk 0:02:46.3]} 24. Qxh4+ {[%clk 0:03:18.6]} 24... Kd7 {[%clk 0:02:45.6]} 25.
axb4 {[%clk 0:03:13.5]} 25... axb4 {[%clk 0:02:44.5]} 26. cxb4 {[%clk
0:03:09.8]} 26... Qxf2 {[%clk 0:02:43.4]} 27. Rf1 {[%clk 0:03:06.4]} 27... Qxg2
{[%clk 0:02:33.3]} 28. Rxf7+ {[%clk 0:03:03.2]} 28... Ke8 {[%clk 0:02:27.4]} 29.
Qe7# {[%clk 0:02:57.9]} 1-0

[Event "Live Chess"]
[Site "Chess.com"]
[Date "2024.06.01"]
[Round "-"]
[White "grillage"]
[Black "WeakOldFinished"]
[Result "0-1"]
[WhiteElo "1887"]
[BlackElo "1086"]
[TimeControl "300"]
[EndTime "10:38:03 PDT"]
[Termination "WeakOldFinished won by checkmate"]

1. d4 {[%clk 0:04:55.7]} 1... Nf6 {[%clk 0:04:57.3]} 2. Nf3 {[%clk 0:04:53.9]}
2... Ne4 {[%clk 0:04:54.4]} 3. c4 {[%clk 0:04:48.7]} 3... e6 {[%clk 0:04:52.5]}
4. Qc2 {[%clk 0:04:45.6]} 4... Bb4+ {[%clk 0:04:50.3]} 5. Nc3 {[%clk 0:04:40.6]}
5... Bxc3+ {[%clk 0:04:48.6]} 6. bxc3 {[%clk 0:04:39.2]} 6... f5 {[%clk
0:04:47.8]} 7. g3 {[%clk 0:04:27.3]} 7... O-O {[%clk 0:04:45.7]} 8. Bg2 {[%clk
0:04:26.5]} 8... Qe7 {[%clk 0:04:34.6]} 9. c5 {[%clk 0:04:19.9]} 9... b6 {[%clk
0:04:26.3]} 10. cxb6 {[%clk 0:04:02.5]} 10... axb6 {[%clk 0:04:23.8]} 11. Nd2
{[%clk 0:04:01.5]} 11... d5 {[%clk 0:04:13.2]} 12. O-O {[%clk 0:03:56.7]} 12...
Nc6 {[%clk 0:04:08.2]} 13. e3 {[%clk 0:03:45.4]} 13... Ba6 {[%clk 0:04:06]} 14.
Re1 {[%clk 0:03:37.9]} 14... Na5 {[%clk 0:04:04.8]} 15. f3 {[%clk 0:03:19.7]}
15... Nxd2 {[%clk 0:03:53.9]} 16. Bxd2 {[%clk 0:03:15.5]} 16... Nc4 {[%clk
0:03:51.8]} 17. Kh1 {[%clk 0:03:09.6]} 17... c5 {[%clk 0:03:48.9]} 18. e4 {[%clk
0:02:55]} 18... fxe4 {[%clk 0:03:41.8]} 19. fxe4 {[%clk 0:02:52.9]} 19... Rf2
{[%clk 0:03:41.3]} 20. Rad1 {[%clk 0:02:42.8]} 20... Qf7 {[%clk 0:03:35.2]} 21.
Qc1 {[%clk 0:02:30]} 21... Rf8 {[%clk 0:03:32.3]} 22. Bf4 {[%clk 0:02:24]} 22...
g5 {[%clk 0:03:22.9]} 23. Bxg5 {[%clk 0:02:16.2]} 23... Rxg2 {[%clk 0:03:21.6]}
24. Kxg2 {[%clk 0:01:25.1]} 24... Qf3+ {[%clk 0:03:19.4]} 25. Kh3 {[%clk
0:01:24.1]} 25... e5 {[%clk 0:03:07.9]} 26. Rf1 {[%clk 0:01:17.8]} 26... Bc8+
{[%clk 0:03:06.6]} 27. Kh4 {[%clk 0:01:10.4]} 27... Qg4# {[%clk 0:03:05.1]} 0-1

[Event "Live Chess"]
[Site "Chess.com"]
[Date "2024.06.01"]
[Round "-"]
[White "SergiiA"]
[Black "ZatixMajor"]
[Result "0-1"]
[WhiteElo "1550"]
[BlackElo "2001"]
[TimeControl "300"]
[EndTime "10:38:18 PDT"]
[Termination "ZatixMajor won on time"]

1. c4 {[%clk 0:04:58.6]} 1... Nf6 {[%clk 0:04:58.8]} 2. Nc3 {[%clk 0:04:57.9]}
2... g6 {[%clk 0:04:58.4]} 3. e4 {[%clk 0:04:55.6]} 3... Bg7 {[%clk 0:04:58]} 4.
g3 {[%clk 0:04:53.8]} 4... O-O {[%clk 0:04:56.4]} 5. Bg2 {[%clk 0:04:53.5]} 5...
d6 {[%clk 0:04:55.8]} 6. Nge2 {[%clk 0:04:53]} 6... c5 {[%clk 0:04:55.1]} 7. O-O
{[%clk 0:04:51.3]} 7... Nc6 {[%clk 0:04:54.7]} 8. h3 {[%clk 0:04:50.4]} 8... Be6
{[%clk 0:04:52.7]} 9. d3 {[%clk 0:04:49]} 9... a6 {[%clk 0:04:52]} 10. Be3
{[%clk 0:04:48.2]} 10... Rb8 {[%clk 0:04:46]} 11. f4 {[%clk 0:04:45.5]} 11... b5
{[%clk 0:04:41.7]} 12. b3 {[%clk 0:04:41.1]} 12... Qd7 {[%clk 0:04:38]} 13. Kh2
{[%clk 0:04:39]} 13... Nh5 {[%clk 0:04:23.6]} 14. Rc1 {[%clk 0:04:23.9]} 14...
Nd4 {[%clk 0:04:19.5]} 15. g4 {[%clk 0:04:16.2]} 15... b4 {[%clk 0:04:11.9]} 16.
Nd5 {[%clk 0:04:04.4]} 16... Bxd5 {[%clk 0:04:10.6]} 17. cxd5 {[%clk 0:03:57.2]}
17... Nxe2 {[%clk 0:04:08.2]} 18. Qxe2 {[%clk 0:03:51.2]} 18... Nf6 {[%clk
0:04:07.7]} 19. Rc2 {[%clk 0:03:26.7]} 19... a5 {[%clk 0:04:06.4]} 20. Rfc1
{[%clk 0:03:25.5]} 20... a4 {[%clk 0:04:02.8]} 21. d4 {[%clk 0:03:21.3]} 21...
cxd4 {[%clk 0:03:54.8]} 22. Bxd4 {[%clk 0:03:19.7]} 22... Nxg4+ {[%clk
0:03:48.6]} 23. hxg4 {[%clk 0:03:11.6]} 23... Bxd4 {[%clk 0:03:45.2]} 24. Rc7
{[%clk 0:03:09.3]} 24... Qd8 {[%clk 0:03:42]} 25. R1c4 {[%clk 0:03:01.9]} 25...
Bc5 {[%clk 0:03:38.6]} 26. Rc6 {[%clk 0:02:58.3]} 26... e6 {[%clk 0:03:31.8]}
27. e5 {[%clk 0:02:51]} 27... Qh4+ {[%clk 0:03:30.3]} 28. Bh3 {[%clk 0:02:47.4]}
28... exd5 {[%clk 0:03:24.8]} 29. Rc2 {[%clk 0:02:40.4]} 29... Rb6 {[%clk
0:02:30.3]} 30. Rc7 {[%clk 0:02:31.1]} 30... Bd4 {[%clk 0:02:23.8]} 31. e6
{[%clk 0:02:12.8]} 31... Qf6 {[%clk 0:02:01.3]} 32. exf7+ {[%clk 0:01:24.9]}
32... Rxf7 {[%clk 0:02:01.2]} 33. Rxf7 {[%clk 0:00:25.7]} 33... Qxf7 {[%clk
0:01:53.4]} 34. Rc8+ {[%clk 0:00:20.3]} 34... Kg7 {[%clk 0:01:48.2]} 35. g5
{[%clk 0:00:13.4]} 35... Qxf4+ {[%clk 0:01:45.7]} 36. Kh1 {[%clk 0:00:12]} 36...
Qxg5 {[%clk 0:01:32.2]} 37. Rc7+ {[%clk 0:00:09.2]} 37... Kh6 {[%clk 0:01:24.5]}
0-1

[Event "Live Chess"]
[Site "Chess.com"]
[Date "2024.06.01"]
[Round "-"]
[White "OliWally08"]
[Black "ACM42"]
[Result "0-1"]
[WhiteElo "1263"]
[BlackElo "2220"]
[TimeControl "300"]
[EndTime "10:38:18 PDT"]
[Termination "ACM42 won by resignation"]

1. e4 {[%clk 0:04:57.9]} 1... e6 {[%clk 0:04:58.3]} 2. d4 {[%clk 0:04:54.6]}
2... d5 {[%clk 0:04:55.2]} 3. e5 {[%clk 0:04:53.8]} 3... c5 {[%clk 0:04:52.2]}
4. c3 {[%clk 0:04:53.1]} 4... Nc6 {[%clk 0:04:49.1]} 5. Nf3 {[%clk 0:04:51.6]}
5... Qb6 {[%clk 0:04:47.9]} 6. Bd3 {[%clk 0:04:49.4]} 6... Bd7 {[%clk
0:04:45.4]} 7. O-O {[%clk 0:04:48.1]} 7... cxd4 {[%clk 0:04:43.8]} 8. cxd4
{[%clk 0:04:47.5]} 8... Nxd4 {[%clk 0:04:43.7]} 9. Nxd4 {[%clk 0:04:46.5]} 9...
Qxd4 {[%clk 0:04:43.6]} 10. Nc3 {[%clk 0:04:44.6]} 10... a6 {[%clk 0:04:39.9]}
11. Re1 {[%clk 0:04:14.9]} 11... Qb6 {[%clk 0:04:21.7]} 12. Be3 {[%clk
0:04:12.4]} 12... Bc5 {[%clk 0:04:18.6]} 13. Bxc5 {[%clk 0:03:43.9]} 13... Qxc5
{[%clk 0:04:12.7]} 14. Rc1 {[%clk 0:03:42]} 14... Qb6 {[%clk 0:04:04.5]} 15. Qf3
{[%clk 0:03:15.4]} 15... Ne7 {[%clk 0:03:59]} 16. Qg3 {[%clk 0:03:04.9]} 16...
g6 {[%clk 0:03:57.1]} 17. Kh1 {[%clk 0:02:59.6]} 17... h5 {[%clk 0:03:50.1]} 18.
Qh4 {[%clk 0:02:53]} 18... Rg8 {[%clk 0:03:30.2]} 19. Re3 {[%clk 0:02:49.7]}
19... Qxb2 {[%clk 0:03:22.5]} 20. Rc2 {[%clk 0:02:26.2]} 20... Qa1+ {[%clk
0:03:17.3]} 0-1